fUSD/lending_fUSD_20260207
["ID","MTS","AMOUNT","RATE_DAILY","PERIOD"]
[404685965,1770444638697,-163.0,0.0001768,2]
[404685967,1770444638707,-840.0,0.0001768,2]
[404685969,1770444638716,-838.0,0.0001768,2]
[404685971,1770444638726,-1418.95571903,0.0001776,2]
[404685973,1770444638736,-250.75057009,0.00017803,2]
[404685975,1770444638746,-200.0,0.00017856,2]
[404685977,1770444638756,-481.99323195,0.00017893,2]
[404685979,1770444638765,-484.42085053,0.00017893,2]
[404685981,1770444638775,-1000.0,0.000179,2]
[404685983,1770444638784,-24659.8544,0.000179,2]
[404685985,1770444638795,-1418.95571903,0.000179,2]
[404685987,1770444638805,-20746.99728898,0.000179,2]
[404685989,1770444638814,-357.8,0.000179,2]
[404685991,1770444638823,-166.7450837,0.0001799,2]
[404685993,1770444638832,-154.280507,0.00017997,2]
[404685995,1770444638842,-300.0,0.00017999,2]
[404685997,1770444638852,-155.0,0.00017999,2]
[404685999,1770444638862,-300.0,0.00017999,2]
[404686001,1770444638871,-300.0,0.00017999,2]
[404686003,1770444638880,-2723.0,0.00018,2]
[404686005,1770444638889,-6515.96631889,0.00018,2]
[404686007,1770444638902,-110758.52712505,0.00018,2]
[404686009,1770444638913,-329.65315929,0.00018,2]
[404686033,1770444640481,-254.35801595,0.00018,2]
[404686034,1770444640493,-429.22884342,0.00018,2]
[404686035,1770444640542,-270.00005,0.00018,2]
[404686036,1770444640658,-1071.60954191,0.00018,2]
[404686037,1770444640720,-518.41009963,0.00018,2]
[404686038,1770444640732,-751.66775334,0.00018,2]
[404686039,1770444640744,-1763.50951886,0.00018,2]
[404686040,1770444640781,-26057.02383779,0.00018,2]
[404686051,1770444645405,-2681.7102304,0.00018,2]
[404686054,1770444646174,-1404.34,0.00018,2]
[404686055,1770444646452,-449.48758394,0.00018,2]
[404686056,1770444646510,-7554.48005327,0.00018,2]
[404686060,1770444667806,10000.0,0.00035616,120]
[404686062,1770444688160,288.0,0.00035616,120]
[404686069,1770445239523,200.0,0.00034485,120]
[404686071,1770445239791,200.0,0.00034485,120]
[404686072,1770445240048,200.66404978,0.00028738,120]
[404686084,1770445832225,-174.53725633,0.00013599,2]
[404686085,1770445832236,-195.0,0.00013599,2]
[404686086,1770445832248,-195.0,0.00013599,2]
[404686087,1770445832258,-97.38497262,0.000136,2]
[404686088,1770445832296,-137.61502738,0.000136,2]
[404686089,1770445832308,-500.48421576,0.00013699,2]
[404686090,1770445832319,-500.95442163,0.00013699,2]
[404686091,1770445832329,-549.46832782,0.00013817,2]
[404686092,1770445832343,-597.81594954,0.00013817,2]
[404686093,1770445832355,-131.69688074,0.00014959,2]
[404686094,1770445832367,-63.30311926,0.00014959,2]
[404686095,1770445832378,-195.0,0.00014959,2]
[404686096,1770445832388,-195.0,0.00014959,2]
[404686097,1770445832398,-152.40947645,0.00014959,2]
[404686098,1770445832408,-447.59052355,0.00014959,2]
[404686099,1770445832418,-68.19017252,0.00014959,2]
[404686100,1770445832480,-531.80982748,0.00014959,2]
[404686101,1770445832490,-600.0,0.00014959,2]
[404686102,1770445832500,-47.75783735,0.00015,2]
[404686103,1770445832541,-202.24216265,0.00015,2]
[404686104,1770445832550,-1147.28427736,0.00015332,2]
[404686105,1770445832560,-231.64652327,0.00016552,2]
[404686106,1770445832571,-768.35347673,0.00016552,2]
[404686107,1770445832580,-12745.95207157,0.00016552,2]
[404686108,1770445832591,-2078.9085527,0.00016552,2]
[404686109,1770445832603,-259.39015822,0.00016552,2]
[404686110,1770445832614,-972.66991975,0.00016552,2]
[404686135,1770445838325,-340.7948031,0.00016552,2]
[404686137,1770445838381,-603.85449466,0.00016552,2]
[404686138,1770445838575,-500.0,0.0001669,2]
[404686139,1770445838586,-1147.28427736,0.00016847,2]
[404686140,1770445838596,-300.0,0.00017,2]
[404686141,1770445838607,-163.0,0.0001704,2]
[404686142,1770445838617,-500.0,0.00017047,2]
[404686143,1770445838627,-2466.995,0.00017101,2]
[404686144,1770445838635,-200.0,0.00017301,2]
[404686145,1770445838645,-163.0,0.0001736,2]
[404686146,1770445838655,-974.16622798,0.000174,2]
[404686147,1770445838667,-1525.83377202,0.000174,2]
[404686148,1770445838677,-200.0,0.00017433,2]
[404686150,1770445838686,-250.0,0.00017489,2]
[404686152,1770445838696,-250.0,0.00017489,2]
[404686154,1770445838706,-250.0,0.00017489,2]
[404686156,1770445838715,-250.0,0.00017489,2]
[404686158,1770445838724,-250.0,0.00017489,2]
[404686160,1770445838734,-250.0,0.00017489,2]
[404686162,1770445838743,-250.0,0.00017489,2]
[404686164,1770445838752,-250.0,0.00017489,2]
[404686166,1770445838762,-1970.867,0.0001749,2]
[404686168,1770445838771,-171.532,0.0001749,2]
[404686170,1770445838781,-151.0,0.00017497,2]
[404686172,1770445838790,-300.0,0.00017499,2]
[404686176,1770445838800,-487.0,0.000175,2]
[404686178,1770445838810,-487.0,0.000175,2]
[404686180,1770445838819,-487.0,0.000175,2]
[404686181,1770445838828,-487.0,0.000175,2]
[404686184,1770445838838,-487.0,0.000175,2]
[404686186,1770445838848,-487.0,0.000175,2]
[404686188,1770445838858,-487.0,0.000175,2]
[404686191,1770445838878,-487.0,0.000175,2]
[404686193,1770445838888,-487.0,0.000175,2]
[404686195,1770445838900,-487.0,0.000175,2]
[404686197,1770445838910,-487.0,0.000175,2]
[404686199,1770445838921,-487.0,0.000175,2]
[404686201,1770445838932,-882.35,0.000175,2]
[404686203,1770445838943,-398.0,0.00017556,2]
[404686205,1770445838953,-398.0,0.00017572,2]
[404686207,1770445838963,-398.0,0.00017578,2]
[404686209,1770445838973,-398.0,0.00017603,2]
[404686211,1770445838983,-398.0,0.00017607,2]
[404686213,1770445838993,-200.0,0.00017707,2]
[404686215,1770445839002,-412.82,0.00017728,2]
[404686217,1770445839012,-9999.99,0.00017728,2]
[404686220,1770445839023,-398.0,0.00017738,2]
[404686222,1770445839033,-33304.9777,0.000178,2]
[404686224,1770445839043,-1000.0,0.000178,2]
[404686226,1770445839053,-3306.6463,0.000178,2]
[404686228,1770445839062,-398.0,0.00017832,2]
[404686230,1770445839072,-5943.98322789,0.000179,2]
[404686232,1770445839084,-4282.22884414,0.000179,2]
[404686235,1770445839103,-592.92,0.0001676,2]
[404686237,1770445839112,-5480.81696035,0.000179,2]
[404686267,1770445839691,592.92,0.00025139,120]
[404686270,1770445840704,-1402.39033746,0.000179,2]
[404686288,1770445846363,-1838.92459628,0.000179,2]
[404686290,1770445846372,-2317.01593984,0.000179,2]
[404686292,1770445846382,-7234.68445756,0.000179,2]
[404686294,1770445846589,-328.30815586,0.000179,2]
[404686295,1770445846600,-1298.51904227,0.000179,2]
[404686302,1770446514330,150.0,0.0002,30]
[404686305,1770446657299,300.93947131,0.00035589,120]
[404686306,1770446673219,178.0275864,0.0002,14]
[404686309,1770447009532,500.0,0.000354,120]
[404686314,1770447031519,-150.0,0.00013991,2]
[404686315,1770447031530,-372.52545342,0.00013991,2]
[404686316,1770447031540,-49.13575866,0.00013992,2]
[404686317,1770447031551,-101.86424134,0.00013992,2]
[404686318,1770447031561,-151.0,0.00013992,2]
[404686319,1770447031571,-47.12575866,0.00013992,2]
[404686320,1770447031583,-103.87424134,0.00013992,2]
[404686321,1770447031592,-151.0,0.00013992,2]
[404686322,1770447031603,-151.0,0.00013992,2]
[404686323,1770447031613,-151.0,0.00013992,2]
[404686324,1770447031622,-201.73388355,0.00013992,2]
[404686325,1770447031632,-151.0,0.00013992,2]
[404686326,1770447031642,-151.0,0.00013992,2]
[404686327,1770447031651,-151.0,0.00013992,2]
[404686328,1770447031660,-151.0,0.00013992,2]
[404686329,1770447031670,-151.0,0.00013992,2]
[404686330,1770447031679,-151.0,0.00013992,2]
[404686331,1770447031688,-151.0,0.00013992,2]
[404686332,1770447031698,-151.0,0.00013992,2]
[404686333,1770447031708,-151.0,0.00013992,2]
[404686334,1770447031718,-151.0,0.00013992,2]
[404686335,1770447031728,-151.0,0.00013992,2]
[404686336,1770447031737,-500.0,0.00013992,2]
[404686337,1770447031747,-151.0,0.00013992,2]
[404686338,1770447031756,-151.0,0.00013992,2]
[404686339,1770447031766,-151.0,0.00013992,2]
[404686340,1770447031775,-500.0,0.00013992,2]
[404686341,1770447031785,-151.0,0.00013992,2]
[404686342,1770447031794,-151.0,0.00013992,2]
[404686343,1770447031804,-151.0,0.00013992,2]
[404686344,1770447031813,-500.0,0.00013992,2]
[404686345,1770447031822,-151.0,0.00013992,2]
[404686346,1770447031831,-500.0,0.00013992,2]
[404686347,1770447031841,-151.0,0.00013992,2]
[404686348,1770447031852,-151.0,0.00013992,2]
[404686349,1770447031861,-500.0,0.00013992,2]
[404686350,1770447031871,-151.0,0.00013992,2]
[404686351,1770447031881,-151.0,0.00013992,2]
[404686354,1770447031890,-500.0,0.00013992,2]
[404686355,1770447031900,-500.0,0.00013992,2]
[404686356,1770447031909,-151.0,0.00013992,2]
[404686359,1770447031918,-151.0,0.00013992,2]
[404686362,1770447031928,-500.0,0.00013992,2]
[404686365,1770447031938,-500.0,0.00013992,2]
[404686368,1770447031947,-151.0,0.00013992,2]
[404686371,1770447031956,-151.0,0.00013992,2]
[404686373,1770447031966,-500.0,0.00013992,2]
[404686375,1770447031975,-151.0,0.00013992,2]
[404686376,1770447031985,-151.0,0.00013992,2]
[404686377,1770447031995,-500.0,0.00013992,2]
[404686378,1770447032004,-500.0,0.00013992,2]
[404686379,1770447032014,-151.0,0.00013992,2]
[404686380,1770447032023,-151.0,0.00013992,2]
[404686381,1770447032034,-500.0,0.00013992,2]
[404686382,1770447032043,-500.0,0.00013992,2]
[404686383,1770447032052,-151.0,0.00013992,2]
[404686384,1770447032062,-500.0,0.00013992,2]
[404686385,1770447032071,-500.0,0.00013992,2]
[404686386,1770447032081,-151.0,0.00013992,2]
[404686387,1770447032090,-500.0,0.00013992,2]
[404686388,1770447032100,-151.0,0.00013992,2]
[404686389,1770447032110,-520.91576166,0.00013992,2]
[404686390,1770447032119,-500.0,0.00013992,2]
[404686391,1770447032128,-151.0,0.00013992,2]
[404686392,1770447032137,-500.0,0.00013992,2]
[404686393,1770447032146,-500.0,0.00013992,2]
[404686394,1770447032156,-598.92721308,0.00013992,2]
[404686395,1770447032166,-151.0,0.00013992,2]
[404686396,1770447032176,-500.0,0.00013992,2]
[404686397,1770447032185,-200.0,0.00013992,2]
[404686398,1770447032195,-181.56790667,0.00013992,2]
[404686399,1770447032204,-1469.05903461,0.00014,2]
[404686400,1770447032228,-860.18498199,0.00014,2]
[404686401,1770447032240,-303.999998,0.00014,2]
[404686402,1770447032251,-706.49,0.00014,2]
[404686403,1770447032264,-6980.0,0.00014,2]
[404686404,1770447032275,-776.15703811,0.00014,2]
[404686411,1770447037577,-500.0,0.00014,2]
[404686412,1770447037597,-1402.02305659,0.00014,2]
[404686413,1770447037612,-769.31118832,0.00014,2]
[404686414,1770447037624,-8568.21857437,0.00014,2]
[404686415,1770447037639,-1097.05524,0.00014,2]
[404686416,1770447037651,-335.96000004,0.00014,2]
[404686417,1770447037662,-2849.04307254,0.00014,2]
[404686418,1770447037672,-1073.58539104,0.00014201,2]
[404686419,1770447037681,-255.0,0.0001511,2]
[404686420,1770447037690,-600.0,0.0001539,2]
[404686421,1770447037699,-152.0,0.0001566,3]
[404686422,1770447037709,-1073.58539104,0.00015702,2]
[404686423,1770447037718,-55.17991428,0.00015704,2]
[404686424,1770447037729,-111.48008572,0.00015704,2]
[404686425,1770447037739,-166.66,0.00016034,2]
[404686426,1770447037748,-267.3,0.00016166,2]
[404686427,1770447037757,-433.0,0.00016313,2]
[404686428,1770447037766,-166.66,0.00016365,2]
[404686429,1770447037776,-2175.44,0.00016385,2]
[404686430,1770447037785,-150.0,0.00016411,2]
[404686431,1770447037794,-384.35,0.0001669,2]
[404686432,1770447037803,-166.66,0.00016695,2]
[404686433,1770447037813,-688.4,0.00016717,2]
[404686434,1770447037822,-384.35,0.0001672,2]
[404686435,1770447037831,-384.35,0.00016751,2]
[404686436,1770447037841,-384.35,0.00016782,2]
[404686437,1770447037850,-384.35,0.00016813,2]
[404686438,1770447037860,-9493.83,0.00016813,2]
[404686439,1770447037870,-384.35,0.00016843,2]
[404686440,1770447037879,-384.35,0.00016874,2]
[404686441,1770447037888,-384.35,0.00016905,2]
[404686442,1770447037898,-384.35,0.00016936,2]
[404686443,1770447037907,-384.35,0.00016966,2]
[404686444,1770447037916,-384.35,0.00016997,2]
[404686445,1770447037926,-166.66,0.00017026,2]
[404686446,1770447037936,-384.35,0.00017028,2]
[404686447,1770447037945,-163.0,0.0001704,2]
[404686448,1770447037954,-310.98,0.0001704,2]
[404686449,1770447037967,-384.35,0.00017059,2]
[404686450,1770447037977,-384.35,0.00017089,2]
[404686451,1770447037987,-384.35,0.0001712,2]
[404686452,1770447037997,-384.35,0.00017151,2]
[404686453,1770447038007,-384.35,0.00017181,2]
[404686454,1770447038016,-384.35,0.00017212,2]
[404686455,1770447038026,-384.35,0.00017243,2]
[404686456,1770447038035,-384.35,0.00017274,2]
[404686457,1770447038046,-166.66,0.00017357,2]
[404686458,1770447038055,-839.0,0.0001736,2]
[404686459,1770447038066,-25000.0,0.000174,3]
[404686460,1770447038075,-257.99393271,0.00017441,2]
[404686461,1770447038085,-224.30683848,0.00017441,2]
[404686462,1770447038094,-171.533,0.00017476,2]
[404686463,1770447038106,-1576.694,0.00017476,2]
[404686464,1770447038116,-150.0,0.00017484,2]
[404686465,1770447038126,-278.2575136,0.0001753,2]
[404686466,1770447038136,-294.91026601,0.0001753,2]
[404686467,1770447038147,-500.0,0.0001753,2]
[404686468,1770447038161,-150.0,0.00017539,2]
[404686469,1770447038171,-157.54035197,0.00017562,2]
[404686470,1770447038181,-500.0,0.00017585,2]
[404686471,1770447038191,-500.0,0.0001764,2]
[404686472,1770447038201,-267.62254994,0.00017694,2]
[404686473,1770447038211,-193.15841192,0.000177,2]
[404686474,1770447038224,-2500.0,0.000177,2]
[404686475,1770447038235,-11945.6907199,0.00017769,2]
[404686476,1770447038245,-967.0,0.00017781,2]
[404686477,1770447038255,-300.0,0.00017799,2]
[404686478,1770447038266,-487.0,0.000178,2]
[404686479,1770447038276,-487.0,0.000178,2]
[404686480,1770447038286,-487.0,0.000178,2]
[404686481,1770447038298,-487.0,0.000178,2]
[404686482,1770447038308,-487.0,0.000178,2]
[404686483,1770447038318,-487.0,0.000178,2]
[404686484,1770447038328,-487.0,0.000178,2]
[404686485,1770447038339,-496.18,0.000178,2]
[404686486,1770447038349,-506.15300166,0.00017882,2]
[404686487,1770447038364,-166.66,0.000179,2]
[404686488,1770447038375,-1000.0,0.000179,2]
[404686489,1770447038385,-152.51502,0.000179,2]
[404686490,1770447038395,-163.149172,0.000179,2]
[404686491,1770447038405,-151.0,0.000179,2]
[404686492,1770447038415,-151.0,0.000179,2]
[404686493,1770447038424,-151.0,0.000179,2]
[404686494,1770447038434,-245.430464,0.000179,2]
[404686495,1770447038444,-346.00753206,0.000179,2]
[404686496,1770447038454,-181.9210953,0.000179,2]
[404686497,1770447038464,-12577.27781951,0.000179,2]
[404686498,1770447038474,-10109.3960691,0.000179,2]
[404686499,1770447038484,-3822.00571264,0.000179,2]
[404686500,1770447038494,-593.471395,0.000179,2]
[404686501,1770447038504,-593.471395,0.000179,2]
[404686502,1770447038514,-593.471395,0.000179,2]
[404686503,1770447038523,-593.471395,0.000179,2]
[404686504,1770447038533,-533.94053118,0.000179,2]
[404686505,1770447038546,-151.0,0.000179,2]
[404686506,1770447038556,-398.0,0.00017929,2]
[404686507,1770447038566,-2992.3855957,0.00017934,2]
[404686508,1770447038577,-398.0,0.00017942,2]
[404686509,1770447038587,-398.0,0.00017951,2]
[404686510,1770447038597,-151.0,0.00017989,2]
[404686511,1770447038608,-151.0,0.00017989,2]
[404686512,1770447038617,-151.0,0.00017989,2]
[404686513,1770447038627,-478.72063205,0.0001799,2]
[404686514,1770447038637,-290.51885735,0.0001799,2]
[404686515,1770447038646,-290.51885735,0.0001799,2]
[404686516,1770447038656,-290.51885735,0.0001799,2]
[404686517,1770447038666,-285.0,0.00017991,2]
[404686518,1770447038677,-151.0,0.00017997,2]
[404686519,1770447038687,-2189.0,0.00018,2]
[404686520,1770447038697,-136222.27740192,0.00018,2]
[404686521,1770447038864,-73239.3091477,0.00018,2]
[404686522,1770447039553,-2055.51989803,0.00018,2]
[404686526,1770447039994,-7294.02521592,0.00018,2]
[404686527,1770447040235,-2054.98497725,0.00018,2]
[404686535,1770447044531,-171.238283,0.000179,2]
[404686536,1770447044541,-213.282357,0.00018,2]
[404686537,1770447044552,-1603.16007671,0.00018,2]
[404686578,1770447466924,-300.0,0.00017463,7]
[404686581,1770447938797,-983.67505372,0.00013798,2]
[404686582,1770447938911,-216.32494628,0.00013798,2]
[404686583,1770448004084,-195.0,0.00013798,2]
[404686584,1770448004104,-264.0,0.00013799,2]
[404686585,1770448004124,-150.0,0.00013799,2]
[404686586,1770448004144,-300.0,0.00013799,2]
[404686587,1770448004167,-4341.44159047,0.000138,2]
[404686588,1770448039266,298.353864,0.00013798,2]
[404686590,1770448093323,-150.0,0.00013758,2]
[404686591,1770448215620,474.33,0.00024694,120]
[404686598,1770448231801,-1612.39440711,0.00013758,2]
[404686599,1770448231812,-612.78854042,0.00013758,2]
[404686600,1770448231824,-373.52705247,0.00013758,2]
[404686601,1770448231838,-9.646136,0.00013798,2]
[404686602,1770448231848,-150.0,0.00013799,2]
[404686603,1770448231858,-2503.90405558,0.000138,2]
[404686604,1770448231869,-871.14161176,0.000138,2]
[404686605,1770448231880,-2072.44626956,0.000138,2]
[404686606,1770448231891,-23433.07561304,0.000138,2]
[404686608,1770448231902,-1159.94357071,0.000138,2]
[404686611,1770448231917,-1557.24223161,0.000138,2]
[404686613,1770448231928,-9431.75073065,0.000138,2]
[404686615,1770448231937,-500.0,0.000138,2]
[404686617,1770448231947,-348.00314474,0.000138,2]
[404686619,1770448231956,-831.90140633,0.00013973,2]
[404686621,1770448231966,-195.0,0.00014023,2]
[404686623,1770448231974,-250.0,0.00015,2]
[404686625,1770448231983,-195.0,0.00015178,2]
[404686627,1770448231992,-250.0,0.00015178,2]
[404686629,1770448232001,-831.90140633,0.00015481,2]
[404686631,1770448232011,-500.0,0.00016441,2]
[404686634,1770448232020,-474.33,0.00016463,2]
[404686637,1770448232029,-1699.55,0.00016649,2]
[404686639,1770448232039,-200.0,0.00016722,2]
[404686641,1770448232049,-210.02,0.00016818,2]
[404686642,1770448232059,-696.84703475,0.0001691,2]
[404686645,1770448232069,-3011.59,0.0001692,2]
[404686646,1770448232081,-831.90140633,0.00016989,2]
[404686649,1770448232091,-174.61919141,0.00017099,2]
[404686650,1770448232100,-151.0,0.00017099,2]
[404686653,1770448232110,-209.40437684,0.00017099,2]
[404686655,1770448232122,-322.6107,0.00017099,2]
[404686657,1770448232131,-578.20924308,0.00017099,2]
[404686659,1770448232140,-151.6,0.00017154,2]
[404686661,1770448232149,-151.0,0.00017154,2]
[404686663,1770448232158,-217.15233878,0.00017154,2]
[404686665,1770448232169,-250.0,0.00017158,2]
[404686666,1770448232178,-151.0,0.00017209,2]
[404686669,1770448232188,-225.18697532,0.00017209,2]
[404686670,1770448232197,-276.40566697,0.00017264,2]
[404686673,1770448232207,-233.51889341,0.00017264,2]
[404686675,1770448232217,-3174.4943,0.000173,2]
[404686676,1770448232226,-242.15909246,0.00017319,2]
[404686678,1770448232236,-840.0,0.0001736,2]
[404686681,1770448232245,-200.0,0.00017364,2]
[404686683,1770448232255,-251.11897888,0.00017374,2]
[404686684,1770448232264,-260.4103811,0.00017429,2]
[404686686,1770448232274,-1000.0,0.00017462,2]
[404686689,1770448232284,-4490.57208902,0.00017463,7]
[404686691,1770448232296,-209.42791098,0.00017463,7]
[404686693,1770448232305,-270.0455652,0.00017484,2]
[404686695,1770448232315,-280.03725112,0.00017539,2]
[404686697,1770448232324,-290.39862941,0.00017594,2]
[404686699,1770448232338,-175.331,0.0001764,2]
[404686701,1770448232347,-1645.89,0.0001764,2]
[404686703,1770448232356,-181.08010149,0.00017647,2]
[404686705,1770448232367,-323.23298501,0.00017649,2]
[404686707,1770448232376,-860.0,0.0001768,2]
[404686709,1770448232385,-840.0,0.0001768,2]
[404686711,1770448232394,-175.52213451,0.000177,2]
[404686713,1770448232403,-2500.0,0.000177,2]
[404686715,1770448232413,-151.0,0.00017789,2]
[404686717,1770448232422,-500.0,0.00017789,2]
[404686719,1770448232432,-151.0,0.00017789,2]
[404686721,1770448232441,-151.0,0.00017789,2]
[404686723,1770448232451,-151.0,0.00017789,2]
[404686725,1770448232460,-151.0,0.00017789,2]
[404686727,1770448232470,-151.0,0.00017789,2]
[404686729,1770448232479,-263.99350842,0.00017789,2]
[404686730,1770448232489,-151.0,0.00017789,2]
[404686732,1770448232498,-151.0,0.00017789,2]
[404686735,1770448232516,-151.0,0.00017789,2]
[404686737,1770448232527,-151.0,0.00017789,2]
[404686739,1770448232536,-151.0,0.00017789,2]
[404686741,1770448232546,-151.0,0.00017789,2]
[404686744,1770448232555,-151.0,0.00017789,2]
[404686746,1770448232565,-151.0,0.00017789,2]
[404686747,1770448232575,-151.0,0.00017789,2]
[404686749,1770448232587,-500.0,0.00017789,2]
[404686751,1770448232598,-151.0,0.00017789,2]
[404686754,1770448232608,-500.0,0.00017789,2]
[404686756,1770448232617,-151.0,0.00017789,2]
[404686782,1770448232858,-500.0,0.00017789,2]
[404686784,1770448232868,-151.0,0.00017789,2]
[404686786,1770448232879,-500.0,0.00017789,2]
[404686788,1770448232888,-151.0,0.00017789,2]
[404686790,1770448232897,-721.12765535,0.00017789,2]
[404686792,1770448232907,-500.0,0.00017789,2]
[404686794,1770448232916,-153.63735584,0.00017789,2]
[404686796,1770448232926,-500.0,0.00017789,2]
[404686798,1770448232935,-500.0,0.00017789,2]
[404686800,1770448232944,-500.0,0.00017789,2]
[404686802,1770448232953,-500.0,0.00017789,2]
[404686804,1770448232962,-500.0,0.00017789,2]
[404686806,1770448232972,-151.0,0.00017789,2]
[404686808,1770448232982,-500.0,0.00017789,2]
[404686809,1770448232991,-151.0,0.00017789,2]
[404686810,1770448233000,-151.0,0.00017789,2]
[404686811,1770448233010,-151.0,0.00017789,2]
[404686812,1770448233019,-151.0,0.00017789,2]
[404686813,1770448233028,-151.0,0.00017789,2]
[404686814,1770448233038,-151.0,0.00017789,2]
[404686815,1770448233051,-151.0,0.00017789,2]
[404686816,1770448233061,-151.0,0.00017789,2]
[404686817,1770448233070,-151.0,0.00017789,2]
[404686818,1770448233083,-151.0,0.00017789,2]
[404686819,1770448233092,-500.0,0.00017789,2]
[404686820,1770448233101,-500.0,0.00017789,2]
[404686821,1770448233112,-500.0,0.00017789,2]
[404686822,1770448233122,-500.0,0.00017789,2]
[404686823,1770448233132,-500.0,0.00017789,2]
[404686824,1770448233142,-500.0,0.00017789,2]
[404686825,1770448233151,-500.0,0.00017789,2]
[404686826,1770448233161,-500.0,0.00017789,2]
[404686827,1770448233171,-500.0,0.00017789,2]
[404686828,1770448233180,-500.0,0.00017789,2]
[404686829,1770448233190,-500.0,0.00017789,2]
[404686830,1770448233200,-285.70421363,0.00017801,2]
[404686831,1770448233214,-500.0,0.00017899,2]
[404686832,1770448233223,-500.0,0.00017899,2]
[404686833,1770448233232,-500.0,0.00017899,2]
[404686834,1770448233242,-576.28917378,0.00017899,2]
[404686835,1770448233252,-1000.0,0.000179,2]
[404686836,1770448233262,-9900.64059699,0.000179,2]
[404686837,1770448233271,-165.88513622,0.000179,2]
[404686838,1770448233281,-27488.06514396,0.000179,2]
[404686839,1770448233291,-151.0,0.000179,2]
[404686840,1770448233300,-151.0,0.000179,2]
[404686841,1770448233311,-151.0,0.000179,2]
[404686842,1770448233321,-378.01657392,0.000179,2]
[404686843,1770448233332,-151.0,0.000179,2]
[404686844,1770448233342,-1590.80562284,0.000179,3]
[404686845,1770448233352,-500.0,0.000179,2]
[404686846,1770448233362,-474.777116,0.000179,2]
[404686847,1770448233372,-474.777116,0.000179,2]
[404686848,1770448233381,-474.777116,0.000179,2]
[404686849,1770448233391,-474.777116,0.000179,2]
[404686850,1770448233401,-151.0,0.000179,2]
[404686851,1770448233410,-157.4624,0.000179,2]
[404686852,1770448233420,-3105.5676929,0.00017983,2]
[404686853,1770448233430,-151.0,0.00017983,2]
[404686854,1770448233440,-151.0,0.00017983,2]
[404686855,1770448233450,-151.0,0.00017989,2]
[404686856,1770448233460,-2798.0,0.00018,2]
[404686857,1770448233469,-35811.3945631,0.00018,2]
[404686861,1770448237799,-18617.90962888,0.00018,2]
[404686862,1770448237810,-1172.96774003,0.00018,2]
[404686863,1770448237821,-873.39,0.00018,2]
[404686864,1770448237835,-919.38,0.00018,2]
[404686865,1770448237864,-1316.2203478,0.00018,2]
[404686866,1770448237927,-68999.99999993,0.00018,2]
[404686877,1770448239842,-342.41,0.00018,2]
[404686878,1770448239854,-301.912,0.00018,2]
[404686879,1770448239866,-3437.5,0.00018,2]
[404686880,1770448240055,-65984.23308041,0.00018,2]
[404686881,1770448240195,-774.8528981,0.00018,2]
[404686882,1770448240265,-289761.7392918,0.00018,2]
[404686896,1770448245795,-20543.09999998,0.00018,2]
[404686900,1770448246097,-7566.34329071,0.00018,2]
[404686901,1770448246269,-3475.0,0.00018,2]
[404686902,1770448246281,-3224.2911,0.00018,2]
[404686910,1770448248697,-1358.61655297,0.000179,2]